bitfinex/quotes_ETHUSD_20240707
["timestamp","ask_amount","ask_price","bid_price","bid_amount"]
[1720321600484,3.29,3065.2,3064.8,2.28399]
[1720321601069,3.29,3065.2,3064.9,2.28391]
[1720321601307,3.29,3065.2,3065.0,0.08995238]
[1720321604130,3.29,3065.2,3065.1,2.28377]
[1720321604271,3.29,3065.2,3065.1,2.3736907]
[1720321605498,5.6854,3065.2,3065.1,2.3736907]
[1720321605674,5.6854,3065.2,3065.1,2.28377]
[1720321607135,3.29,3065.2,3065.1,2.28377]
[1720321608336,3.29,3065.2,3065.0,2.28384]
[1720321608725,3.29,3065.2,3065.1,0.09002631]
[1720321609031,3.29,3065.2,3065.0,2.28384]
[1720321609397,3.29,3065.2,3065.1,0.09002631]
[1720321609789,3.29,3065.2,3065.0,2.28384]
[1720321610214,3.29,3065.2,3065.1,0.09002631]
[1720321612400,3.863,3065.2,3065.1,0.09002631]
[1720321612600,6.1826,3065.2,3065.1,0.09002631]
[1720321613021,6.1826,3065.2,3064.8,2.28398]
[1720321613219,6.1826,3065.2,3065.1,0.09003038]
[1720321613446,6.1826,3065.2,3064.9,2.28391]
[1720321613743,6.1826,3065.2,3065.0,0.09006205]
[1720321614101,6.1826,3065.2,3065.0,2.37389205]
[1720321614303,3.863,3065.2,3065.0,2.37389205]
[1720321614608,3.29,3065.2,3065.0,2.37389205]
[1720321615396,2.3196,3065.1,3065.0,2.37389205]
[1720321615601,3.29,3065.2,3065.0,2.37389205]
[1720321615798,3.29,3065.2,3065.1,2.28377]
[1720321616134,3.29,3065.2,3065.1,2.37381053]
[1720321617843,3.29,3065.2,3065.1,4.65758053]
[1720321618018,0.05675864,3065.6,3065.5,2.28347]
[1720321618342,1.18650619,3065.6,3065.5,2.37334729]
[1720321619945,1.18650667,3065.6,3065.5,2.37334729]
[1720321621521,1.18650667,3065.6,3065.5,2.28347]
[1720321621817,1.18648456,3065.6,3065.5,2.37334729]
[1720321622416,1.18648359,3065.6,3065.5,2.37334729]
[1720321622829,0.05675864,3065.6,3065.5,2.37334729]
[1720321623050,1.18648434,3065.6,3065.5,2.37334729]
[1720321624026,1.18649865,3065.6,3065.5,2.37334729]
[1720321624749,1.18649865,3065.6,3065.5,0.08987729]
[1720321624951,2.61003011,3065.6,3065.3,2.28362]
[1720321625177,2.61003011,3065.6,3065.1,2.28375]
[1720321625178,1.12974001,3065.5,3065.4,2.37344896]
[1720321625714,1.12979145,3065.5,3065.4,2.37344896]
[1720321626585,2.55331979,3065.5,3065.4,2.37344896]
[1720321626731,1.12979145,3065.5,3065.4,2.37344896]
[1720321627232,2.55331147,3065.5,3065.4,2.37344896]
[1720321627743,2.55331147,3065.5,3065.4,4.56709]
[1720321627947,2.55331147,3065.5,3065.4,4.65699896]
[1720321628145,1.12979145,3065.5,3065.4,4.65699896]
[1720321628470,0.05675864,3065.6,3065.5,4.56694]
[1720321628471,2.44,3065.6,3065.5,4.56694]
[1720321628839,2.44,3065.6,3065.5,4.65677263]
[1720321630064,2.44,3065.6,3065.5,9.42034263]
[1720321630266,4.004,3065.7,3065.6,6.8502]
[1720321630456,4.84405809,3066.2,3066.1,4.56606]
[1720321630657,4.84405809,3066.2,3066.1,7.13567273]
[1720321630970,1.55405809,3066.2,3066.1,7.13567273]
[1720321631139,4.004,3066.6,3066.5,2.28273]
[1720321631344,6.55624888,3066.6,3066.5,2.37208773]
[1720321631965,7.65962489,3066.6,3066.5,0.08935773]
[1720321632160,11.91168056,3066.6,3066.5,0.08935773]
[1720321632385,10.09584489,3066.6,3066.1,2.28302]
[1720321632730,2.275,3066.3,3066.1,2.28302]
[1720321632978,2.275,3066.3,3065.7,2.28332]
[1720321632979,2.252,3066.1,3065.7,2.28332]
[1720321633273,2.55260458,3066.0,3065.7,2.28332]
[1720321633477,6.55660458,3065.9,3065.7,2.28332]
[1720321633672,1.42335159,3065.8,3065.7,2.28332]
[1720321634483,1.42335159,3065.8,3065.5,2.28347]
[1720321634688,2.252,3065.7,3065.5,2.28347]
[1720321634848,1.42335159,3065.6,3065.5,2.28347]
[1720321635380,1.42335159,3065.6,3065.3,2.2836]
[1720321635381,2.55321025,3065.6,3065.3,2.2836]
[1720321635548,2.55321025,3065.5,3065.3,2.2836]
[1720321635749,1.42344826,3065.4,3065.3,2.2836]
[1720321635950,1.42344826,3065.6,3065.3,2.2836]
[1720321636279,3.09075095,3065.5,3065.3,2.2836]
[1720321636502,1.42344826,3065.4,3065.3,2.2836]
[1720321636699,1.42344826,3065.4,3065.1,2.28377]
[1720321637193,1.42344826,3065.4,3065.2,2.2837]
[1720321638495,2.81251306,3065.5,3065.2,2.2837]
[1720321638496,1.42355455,3065.3,3065.2,2.2837]
[1720321638670,1.42355455,3065.4,3065.2,2.2837]
[1720321638874,1.42355455,3065.3,3065.2,2.2837]
[1720321639072,1.1298456,3065.3,3065.2,2.2837]
[1720321639275,1.42355455,3065.3,3065.2,2.2837]
[1720321639474,2.55340699,3065.3,3065.2,2.2837]
[1720321640496,2.55340699,3065.3,3065.0,2.28382]
[1720321640801,5.42755455,3065.2,3065.1,2.28377]
[1720321641489,5.42760995,3065.2,3065.1,2.28377]
[1720321641805,5.42762462,3065.2,3065.1,2.28377]
[1720321642000,4.004,3065.2,3065.1,2.28377]
[1720321642206,5.42761405,3065.2,3065.1,2.28377]
[1720321643065,5.97037546,3065.2,3064.9,2.28392]
[1720321643398,1.42361405,3065.1,3064.9,2.28392]
[1720321644969,1.42369797,3065.0,3064.9,2.28392]
[1720321645173,4.54676141,3065.2,3064.9,2.28392]
[1720321645174,1.42369797,3065.1,3064.9,2.28392]
[1720321645398,1.42369797,3065.0,3064.9,2.28392]
[1720321645907,1.42369797,3065.1,3064.9,2.28392]
[1720321648103,1.42369797,3065.1,3065.0,0.09004172]
[1720321648293,1.42369248,3065.1,3065.0,0.09004172]
[1720321648489,2.5536212,3065.1,3065.0,0.09004172]
[1720321648901,2.5536212,3065.1,3065.0,2.37388172]
[1720321649104,1.42369248,3065.1,3065.0,2.37388172]
[1720321651533,1.42365865,3065.1,3065.0,2.37388172]
[1720321651765,4.004,3065.2,3065.0,2.37388172]
[1720321652043,1.42367109,3065.1,3065.0,2.37388172]
[1720321654537,4.004,3065.2,3065.1,2.28377]
[1720321654721,5.42761472,3065.2,3065.1,2.37383693]
[1720321657098,6.55751329,3065.2,3065.1,2.37383693]
[1720321658028,6.55760279,3065.2,3065.1,2.37383693]
[1720321658807,5.42769005,3065.2,3065.1,2.37383693]
[1720321659351,6.55755174,3065.2,3065.1,2.37383693]
[1720321659553,6.55757977,3065.2,3065.1,2.37383693]
[1720321661252,4.004,3065.2,3065.1,2.37383693]
[1720321661446,6.55753226,3065.2,3065.1,2.37383693]
[1720321661665,6.477,3065.2,3065.1,2.37383693]
[1720321661946,9.03058134,3065.2,3065.1,2.37383693]
[1720321662323,10.10370837,3065.2,3065.1,0.09006693]
[1720321662521,10.10370837,3065.2,3064.9,2.2839]
[1720321662723,2.55358134,3065.1,3065.0,0.09006408]
[1720321662925,2.55364113,3065.1,3065.0,0.09006408]
[1720321664551,9.82512703,3065.2,3064.7,2.28405]
[1720321664844,3.53622472,3065.1,3064.8,0.09013555]
[1720321665057,2.55371202,3065.0,3064.8,0.09013555]
[1720321665213,1.42375095,3064.9,3064.7,2.28405]
[1720321665413,1.12996107,3064.8,3064.7,2.28405]
[1720321665832,1.12996107,3065.0,3064.7,2.28405]
[1720321666039,1.42376709,3064.9,3064.7,2.28405]
[1720321666233,1.12996107,3064.8,3064.7,2.28405]
[1720321666713,1.12998375,3065.0,3064.8,2.28397]
[1720321666954,2.55377392,3064.9,3064.8,2.28397]
[1720321667518,2.55377392,3064.9,3064.6,2.28414]
[1720321667781,0.9825127,3065.1,3064.6,2.28414]
[1720321668049,3.5272976,3065.0,3064.6,2.28414]
[1720321668253,2.55384633,3064.9,3064.6,2.28414]
[1720321668555,2.55384633,3064.8,3064.6,2.28414]
[1720321668718,2.55388042,3064.7,3064.4,0.1127599]
[1720321668916,3.28410856,3064.6,3064.4,0.1127599]
[1720321669116,9.03097959,3064.5,3064.4,0.1127599]
[1720321670917,9.03130762,3064.5,3064.4,0.1127599]
[1720321671216,6.477,3064.5,3064.4,0.1127599]
[1720321671444,9.75202566,3064.5,3064.4,0.1127599]
[1720321673318,7.27902566,3064.5,3064.4,0.1127599]
[1720321674060,4.7247188,3064.5,3064.4,0.1127599]
[1720321674253,7.27908548,3064.5,3064.4,0.1127599]
[1720321677418,7.27906161,3064.5,3064.4,0.1127599]
[1720321679464,8.22906161,3064.5,3064.4,0.20027861]
[1720321679765,8.22906161,3064.5,3064.4,0.1127599]
[1720321679954,10.57286161,3064.5,3064.4,0.1127599]
[1720321680769,10.57290854,3064.5,3064.4,0.1127599]
[1720321681159,9.4426179,3064.5,3064.4,0.1127599]
[1720321681342,10.57285711,3064.5,3064.4,0.1127599]
[1720321681859,8.0185188,3064.5,3064.4,0.1127599]
[1720321682041,11.5455948,3064.5,3064.4,0.1127599]
[1720321682252,10.95898242,3064.5,3064.4,0.20027861]
[1720321682452,12.08927401,3064.5,3064.4,0.20027861]
[1720321682868,12.08927401,3064.5,3064.4,0.1127599]
[1720321683077,15.08927401,3064.5,3064.4,0.1127599]
[1720321683575,15.08927401,3064.5,3063.1,2.28519]
[1720321683576,2.38,3064.0,3062.5,2.3218]
[1720321683883,2.283,3063.2,3063.0,2.28532]
[1720321684039,4.004,3063.1,3063.0,2.28532]
[1720321685781,4.6327,3063.1,3062.8,2.28548]
[1720321686076,4.6327,3063.1,3062.9,2.2854]
[1720321689974,4.6327,3063.1,3063.0,2.28534]
[1720321690174,4.004,3063.1,3063.0,2.28534]
[1720321692174,4.004,3063.1,3063.0,6.91458]
[1720321693198,4.004,3063.1,3063.0,6.99153528]
[1720321697191,4.004,3063.1,3063.0,9.27687528]
[1720321699378,3.29,3063.4,3063.3,4.57022]
[1720321699797,3.29,3063.4,3063.3,4.64723592]
[1720321702716,4.004,3063.8,3063.7,2.28481]
[1720321703077,4.004,3063.8,3063.7,2.36164042]
[1720321703884,4.004,3063.8,3063.7,4.64645042]
[1720321705684,4.4044,3063.8,3063.7,4.64645042]
[1720321706088,4.4044,3063.8,3063.7,2.36164042]
[1720321706476,5.53482745,3063.8,3063.7,2.36164042]
[1720321706878,4.4044,3063.8,3063.7,2.36164042]
[1720321707270,5.53486533,3063.8,3063.7,0.07683042]
[1720321707793,5.53486533,3063.8,3063.5,2.28495]
[1720321708028,2.283,3063.6,3063.2,2.28518]
[1720321708230,1.13048983,3063.5,3063.3,0.07679335]
[1720321708425,1.13048983,3063.5,3063.2,2.28518]
[1720321708631,1.13048983,3063.5,3063.3,0.07682775]
[1720321708808,0.34134898,3063.4,3063.3,0.07682775]
[1720321709008,1.47183881,3063.4,3063.2,2.28518]
[1720321709249,0.34134898,3063.4,3063.3,0.0768318]
[1720321709565,0.34134898,3063.4,3063.2,2.28518]
[1720321709909,0.34134898,3063.4,3063.3,0.0768318]
[1720321710111,0.34134898,3063.4,3063.2,2.28518]
[1720321710307,1.13059548,3063.3,3063.2,2.28518]
[1720321710940,0.34134898,3063.4,3063.2,2.28518]
[1720321711339,1.13061476,3063.3,3063.2,2.28518]
[1720321711745,1.13060403,3063.3,3063.2,2.28518]
[1720321712257,0.34134898,3063.4,3063.2,2.28518]
[1720321712664,1.13059414,3063.3,3063.2,2.28518]
[1720321712884,0.34134898,3063.4,3063.2,2.28518]
[1720321713027,1.13059592,3063.3,3063.2,2.28518]
[1720321713466,0.34134898,3063.4,3063.2,2.28518]
[1720321713634,2.283,3063.6,3063.2,2.28518]
[1720321713832,1.13053805,3063.5,3063.2,2.28518]
[1720321714077,1.13053805,3063.4,3063.3,2.28511]
[1720321714260,1.13053805,3063.5,3063.4,2.28504]
[1720321714441,1.13053805,3063.5,3063.4,4.57008]
[1720321714643,4.004,3063.8,3063.6,2.28485]
[1720321714844,1.77570255,3063.7,3063.6,2.28485]
[1720321716048,1.7756943,3063.7,3063.6,2.28485]
[1720321716364,3.20005364,3063.7,3063.5,2.28494]
[1720321716559,1.13048064,3063.6,3063.5,2.28494]
[1720321717338,3.41348064,3063.6,3063.5,2.28494]
[1720321717673,4.2197557,3063.6,3063.5,2.28494]
[1720321717890,4.2197467,3063.6,3063.5,2.28494]
[1720321718289,5.64411953,3063.6,3063.5,2.28494]
[1720321718571,4.2197467,3063.6,3063.5,2.28494]
[1720321718771,5.64412161,3063.6,3063.5,2.28494]
[1720321718964,4.2197467,3063.6,3063.5,2.28494]
[1720321719174,5.64411687,3063.6,3063.5,2.28494]
[1720321719391,4.21974787,3063.6,3063.3,2.28511]
[1720321719563,2.4903,3063.4,3063.1,2.28525]
[1720321719770,2.55508877,3063.3,3063.1,2.28525]
[1720321719981,2.4903,3063.4,3063.2,0.07693634]
[1720321720296,5.17446242,3063.3,3063.2,0.07693634]
[1720321720654,5.17446242,3063.3,3063.1,2.28525]
[1720321720855,2.55513855,3063.2,3063.1,2.28525]
[1720321721506,2.55513855,3063.2,3062.3,7.34]
[1720321721507,2.4903,3063.1,3060.0,7.14901757]
[1720321721672,2.4903,3063.1,3058.3,5.16178626]
[1720321721673,2.28819,3059.2,3058.3,0.1127599]
[1720321721873,1.5,3059.3,3058.3,0.1127599]
[1720321721874,2.44,3059.0,3058.3,0.1127599]
[1720321722068,2.283,3058.4,3058.3,0.0127599]
[1720321722270,4.004,3058.4,3058.0,6.72875714]
[1720321722495,19.5874077,3058.3,3056.7,2.28999]
[1720321722793,19.5874077,3058.3,3057.2,2.28966]
[1720321722794,2.44,3057.7,3057.2,2.28966]
[1720321722998,4.00312871,3057.6,3057.2,2.28966]
[1720321723204,4.87574158,3057.6,3057.3,0.05197246]
[1720321723414,2.283,3057.4,3055.7,2.29078]
[1720321723556,2.283,3057.0,3056.7,2.29004]
[1720321723759,4.00312871,3056.9,3056.7,2.29004]
[1720321723990,4.00312871,3056.9,3056.8,0.05213165]
[1720321724569,4.00312871,3056.9,3056.7,2.29004]
[1720321724789,4.00312871,3056.9,3056.8,0.05213165]
[1720321725100,4.00312871,3056.9,3056.7,2.29004]
[1720321725416,4.00312871,3056.9,3056.8,2.34210165]
[1720321726934,1.58357351,3057.2,3057.1,2.28975]
[1720321727146,1.58357351,3057.2,3057.1,6.86925]
[1720321727435,1.41270289,3058.3,3058.1,2.28899]
[1720321727594,1.41270289,3058.3,3058.2,0.05288165]
[1720321727795,1.41270289,3058.3,3058.2,2.28892]
[1720321727994,1.41270289,3058.3,3058.2,2.34179356]
[1720321730132,6.00497318,3058.3,3058.2,0.05287356]
[1720321730450,6.00497318,3058.3,3058.0,2.289]
[1720321730633,6.00497318,3058.3,3058.1,0.05276376]
[1720321730940,6.00497318,3058.3,3058.1,2.34175376]
[1720321731294,6.00497318,3058.3,3058.1,2.34176376]
[1720321732195,1.35651583,3058.2,3058.1,2.34176376]
[1720321735658,5.23779014,3058.3,3058.2,2.28192]
[1720321735827,5.23779014,3058.3,3058.2,2.33572412]
[1720321737361,6.33456915,3058.3,3058.2,2.33572412]
[1720321737972,6.33456915,3058.3,3058.2,2.28192]
[1720321738151,6.33456915,3058.3,3058.2,2.33570389]
[1720321738517,6.33456915,3058.3,3058.2,0.05378389]
[1720321739049,6.33456915,3058.3,3058.2,2.34270389]
[1720321739457,6.33456915,3058.3,3058.2,0.05378389]
[1720321739661,6.33456915,3058.3,3057.8,2.28922]
[1720321739868,5.31218475,3058.3,3057.8,2.28922]
[1720321740029,5.31218475,3058.3,3057.9,0.05387934]
[1720321740230,1.37622542,3058.2,3057.8,2.28922]
[1720321740438,1.37622542,3058.2,3058.0,2.28907]
[1720321740637,2.04506644,3058.2,3058.1,0.05381571]
[1720321740850,1.37622542,3058.2,3058.1,0.05381571]
[1720321741149,5.25422542,3058.2,3057.6,2.28936]
[1720321741462,1.32146854,3058.1,3057.7,0.05214913]
[1720321741676,0.82554685,3058.0,3057.5,2.28943]
[1720321741880,0.82554685,3058.0,3057.8,0.0521173]
[1720321742031,0.82554685,3058.0,3057.6,2.28937]
[1720321742362,0.82554685,3058.0,3057.7,0.05214913]
[1720321742725,0.82554685,3058.0,3057.4,2.28951]
[1720321742726,2.19650089,3058.0,3057.4,2.28951]
[1720321743033,0.51965009,3057.9,3057.3,2.28957]
[1720321743231,1.94472218,3057.9,3057.4,0.05224461]
[1720321743454,1.37011388,3057.8,3057.3,2.28957]
[1720321743775,1.37011388,3057.8,3056.3,2.4998]
[1720321743776,1.37011388,3057.8,3057.4,0.05234374]
[1720321744144,1.37011388,3057.8,3057.2,2.28967]
[1720321744350,1.37011388,3057.8,3056.3,2.4998]
[1720321744351,0.4889764,3057.7,3056.8,2.28995]
[1720321744529,1.42207769,3057.6,3056.9,2.28983]
[1720321744870,3.878,3057.5,3057.0,2.28981]
[1720321745185,1.37784628,3057.4,3057.0,2.28981]
[1720321745496,1.37784628,3057.4,3057.1,0.05263143]
[1720321745672,1.37784628,3057.4,3057.1,2.34237143]
[1720321746654,1.37784628,3057.4,3057.1,0.05263143]
[1720321746976,0.52478463,3057.3,3057.0,2.28982]
[1720321747152,0.52478463,3057.3,3057.2,0.05264209]
[1720321747355,0.52478463,3057.3,3057.1,0.05267393]
[1720321747544,0.52478463,3057.3,3057.2,0.05264209]
[1720321747742,0.52478463,3057.3,3057.0,2.28981]
[1720321748250,1.37784628,3057.4,3057.2,2.28964]
[1720321748455,4.23884502,3057.3,3057.0,2.28981]
[1720321748838,4.23884502,3057.3,3057.1,0.05267393]
[1720321749046,4.23884502,3057.3,3057.1,2.34240393]
[1720321749582,1.13284484,3057.2,3057.1,2.34240393]
[1720321749784,1.13284484,3057.3,3057.1,2.34240393]
[1720321750084,1.77091395,3057.3,3057.1,2.34240393]
[1720321750297,0.34169318,3057.2,3057.1,2.34240393]
[1720321750439,0.34169318,3057.2,3057.1,4.63215393]
[1720321750440,1.47455594,3057.2,3057.1,4.63215393]
[1720321752343,1.47455594,3057.2,3057.1,2.34240393]
[1720321753285,0.34169318,3057.2,3057.1,2.34240393]
[1720321753495,1.47449309,3057.2,3057.1,2.34240393]
[1720321753873,1.47450497,3057.2,3057.1,2.34240393]
[1720321755063,1.47451284,3057.2,3057.1,2.34240393]
[1720321755790,1.47451284,3057.2,3057.1,4.63215393]
[1720321755959,1.47451284,3057.2,3057.1,2.34240393]
[1720321756688,1.47449641,3057.2,3057.1,2.34240393]
[1720321757383,1.47449641,3057.2,3057.1,4.63215393]
[1720321757881,1.47449641,3057.2,3057.1,2.34240393]
[1720321758487,1.47449641,3057.2,3057.1,4.63215393]
[1720321759360,1.47449641,3057.2,3057.1,2.34240393]
[1720321759565,1.47449641,3057.2,3057.1,4.63215393]
[1720321759879,1.30711723,3057.5,3057.4,6.86856]
[1720321760055,2.2524,3059.1,3058.7,2.28849]
[1720321760251,0.33723665,3058.8,3058.5,2.28868]
[1720321760470,1.13237062,3058.7,3058.6,2.28862]
[1720321760663,1.4739178,3058.7,3058.6,4.57724]
[1720321761064,0.34154718,3058.7,3058.6,4.57724]
[1720321761391,1.47376206,3058.7,3058.6,4.57724]
[1720321762287,1.47376206,3058.7,3058.6,2.28862]
[1720321762611,4.70976206,3058.7,3058.4,2.28877]
[1720321762928,0.47097621,3058.6,3058.4,2.28877]
[1720321763067,1.13236345,3058.5,3058.4,2.28877]
[1720321763252,3.49619145,3058.5,3058.4,2.28877]
[1720321763450,1.13237594,3058.5,3058.4,2.28877]
[1720321763673,3.49668794,3058.5,3058.4,2.28877]
[1720321763877,4.25120907,3058.5,3058.4,2.28877]
[1720321764659,4.25121005,3058.5,3058.4,2.28877]
[1720321765168,3.95114805,3058.5,3058.4,2.28877]
[1720321765693,5.3779307,3058.5,3058.4,2.28877]
[1720321766255,5.37793463,3058.5,3058.4,2.28877]
[1720321766456,7.51815766,3058.5,3058.4,2.28877]
[1720321767069,5.45390766,3058.5,3058.4,2.28877]
[1720321767504,10.57444854,3058.5,3058.4,2.34073291]
[1720321767685,11.9186334,3058.5,3058.4,2.34073291]
[1720321767870,11.9186334,3058.5,3058.4,2.28877]
[1720321768079,13.04169854,3058.5,3058.4,2.28877]
[1720321768279,14.72643778,3058.5,3058.1,2.28899]
[1720321768485,1.35329635,3058.2,3058.1,2.28899]
[1720321768690,10.03532579,3058.2,3058.1,2.28899]
[1720321769005,11.17322376,3058.2,3058.1,2.28899]
[1720321769366,8.3288648,3058.2,3058.1,2.28899]
[1720321769722,11.17387721,3058.2,3058.1,2.28899]
[1720321769862,12.91236676,3058.2,3058.1,2.28899]
[1720321770268,13.99782041,3058.2,3057.8,2.28916]
[1720321770497,1.35295396,3057.9,3057.8,2.28922]
[1720321770703,9.28872646,3057.9,3057.8,2.28922]
[1720321771008,11.79545683,3057.9,3057.8,4.57844]
[1720321771227,10.78078491,3057.9,3057.8,4.57844]
[1720321771389,10.78078491,3057.9,3057.8,4.62881819]
[1720321771707,12.09562599,3057.9,3057.8,4.62881819]
[1720321772032,16.0631534,3057.9,3057.8,0.05037819]
[1720321772343,24.98425221,3057.9,3057.1,2.28971]
[1720321772618,1.01463061,3057.2,3057.1,2.28971]
[1720321772847,8.95179589,3057.2,3057.1,2.28971]
[1720321772976,11.79769716,3057.2,3057.1,2.28971]
[1720321773179,11.45949416,3057.2,3057.1,4.57946]
[1720321773512,11.79769716,3057.2,3057.1,0.05061107]
[1720321773871,11.79769716,3057.2,3057.1,2.34036107]
[1720321774709,10.78306655,3057.2,3057.1,4.63011107]
[1720321775114,7.93717678,3057.2,3057.1,4.63011107]
[1720321775637,6.80381302,3057.2,3057.1,4.63011107]
[1720321775784,7.93645207,3057.2,3057.1,4.63011107]
[1720321776412,5.79576426,3057.2,3057.1,4.63011107]
[1720321776622,9.07466225,3057.2,3057.1,4.63011107]
[1720321776795,10.78198992,3057.2,3057.1,4.63011107]
[1720321776984,11.4584178,3057.2,3057.1,2.34036107]
[1720321777313,13.04392537,3057.2,3057.1,2.34036107]
[1720321777619,14.41150771,3057.2,3057.1,2.34036107]
[1720321777782,11.79673937,3057.2,3057.1,2.28975]
[1720321778134,14.41144297,3057.2,3057.1,2.34036107]
[1720321778418,13.05860216,3057.2,3057.1,2.34036107]
[1720321778813,13.05981346,3057.2,3057.1,2.28975]
[1720321778983,14.41269689,3057.2,3057.1,2.28975]
[1720321779331,14.41269689,3057.2,3056.0,7.34]
[1720321779332,16.81318943,3057.2,3056.0,7.34]
[1720321779522,16.81318943,3057.2,3055.5,16.85211]
[1720321779523,1.35283188,3056.9,3056.7,2.29]
[1720321779814,9.03558154,3056.8,3056.7,2.29]
[1720321779985,9.03558154,3056.8,3056.5,2.29018]
[1720321780188,6.42072363,3056.7,3056.6,2.29009]
[1720321780388,10.79175669,3056.7,3056.6,2.29009]
[1720321780585,9.52922376,3056.7,3056.6,2.29009]
[1720321781007,9.52922376,3056.7,3056.4,2.29027]
[1720321781008,9.37735637,3056.7,3056.4,2.29027]
[1720321781207,0.6762127,3056.5,3056.4,2.29027]
[1720321781519,10.25813329,3056.5,3056.1,2.29049]
[1720321781721,1.01424577,3056.3,3056.1,2.29049]
[1720321781940,1.01424577,3056.2,3056.1,2.29049]
[1720321782082,4.15004041,3056.2,3056.1,2.29049]
[1720321782312,3.8610319,3056.2,3056.1,2.29049]
[1720321782511,4.15014354,3056.2,3056.1,2.29049]
[1720321782701,3.8610319,3056.2,3056.1,2.29049]
[1720321782899,4.15013645,3056.2,3056.1,2.29049]
[1720321783129,3.8610319,3056.2,3056.1,0.0513371]
[1720321783335,4.84931021,3056.2,3056.1,0.0513371]
[1720321783541,11.93777174,3056.2,3055.8,2.29071]
[1720321783707,1.0138313,3056.0,3055.8,2.29071]
[1720321783912,2.84693686,3056.0,3055.9,4.5813]
[1720321784150,1.0138313,3056.2,3056.1,2.2905]
[1720321784446,4.19848647,3056.4,3056.2,2.29042]
[1720321784634,3.86020984,3056.3,3056.2,2.29042]
[1720321784811,2.84670878,3056.3,3056.2,2.29042]
[1720321785006,3.86011914,3056.3,3056.1,2.29049]
[1720321785235,3.52230505,3056.2,3056.1,2.29049]
[1720321785543,3.52230505,3056.2,3056.1,4.58099]
[1720321785748,2.38365782,3056.2,3056.1,4.58099]
[1720321785934,3.52230505,3056.2,3056.1,4.58099]
[1720321786122,0.67568697,3056.2,3056.1,4.58099]
[1720321786327,2.38365782,3056.2,3056.1,4.58099]
[1720321786524,2.1521692,3056.4,3056.3,2.29035]
[1720321786727,3.86017194,3056.4,3056.3,4.5807]
[1720321786928,3.52220004,3056.4,3056.3,4.5807]
[1720321787449,3.236,3056.5,3056.4,4.58054]
[1720321788524,3.236,3056.5,3056.4,7.557899]
[1720321794547,3.236,3056.5,3056.4,9.848169]
[1720321796056,3.236,3056.5,3056.4,7.557899]
[1720321798172,3.236,3056.5,3056.4,7.60920716]
[1720321798356,3.236,3056.5,3056.4,6.92211816]
[1720321799042,3.236,3056.5,3056.4,4.63184816]
[1720321799665,8.61675444,3056.5,3056.4,2.34157816]
[1720321800571,4.37455634,3056.5,3056.4,2.34157816]
[1720321800768,8.61630149,3056.5,3056.4,2.34157816]
[1720321800966,11.7117245,3056.5,3056.4,2.34157816]
[1720321801176,7.00697327,3056.5,3056.4,2.34157816]
[1720321801347,9.27865526,3056.5,3056.4,2.34157816]
[1720321801753,9.27865526,3056.5,3056.4,2.29027]
[1720321801974,7.21559293,3056.5,3056.4,2.29027]
[1720321802284,7.47797938,3056.5,3056.4,4.58054]
[1720321802440,7.47797938,3056.5,3056.4,2.34002896]
[1720321802644,7.89104999,3056.5,3056.4,2.34002896]
[1720321802879,5.50763804,3056.5,3056.4,2.29027]
[1720321803195,8.29219398,3056.5,3056.4,2.29027]
[1720321803377,8.2922349,3056.5,3056.4,2.29027]
[1720321803558,8.2922349,3056.5,3056.4,2.34002896]
[1720321803559,6.58433463,3056.5,3056.4,2.34002896]
[1720321803761,8.2922374,3056.5,3056.4,0.04975896]
[1720321803947,8.2922374,3056.5,3056.4,2.29027]
[1720321803948,8.96776656,3056.5,3056.4,2.29027]
[1720321804148,8.96776656,3056.5,3056.3,2.29029]
[1720321804463,3.97957057,3056.4,3056.3,2.29029]
[1720321805187,2.2716678,3056.4,3056.3,2.29029]
[1720321806170,1.13306762,3056.4,3056.3,2.29029]
[1720321806369,2.27169222,3056.4,3056.3,2.29029]
[1720321806697,2.27169899,3056.4,3056.2,2.29041]
[1720321806987,1.13308318,3056.3,3056.2,2.29041]
[1720321807347,2.27172157,3056.3,3056.2,2.34026093]
[1720321808266,1.80821637,3056.3,3056.2,2.34026093]
[1720321808472,1.80821637,3056.3,3056.2,0.04985093]
[1720321808473,5.68698262,3056.3,3056.2,0.04985093]
[1720321808770,7.28932966,3056.3,3056.0,2.29057]
[1720321808989,0.67544313,3056.1,3056.0,2.29057]
[1720321809149,3.97968118,3056.1,3056.0,2.29057]
[1720321809352,3.97968118,3056.1,3055.8,2.29071]
[1720321809353,4.99284588,3056.1,3055.8,2.29071]
[1720321809590,1.17484883,3056.0,3055.8,2.29071]
[1720321809781,1.17484883,3056.0,3055.2,2.4039299]
[1720321809782,4.65581708,3055.9,3055.7,2.29076]
[1720321810002,7.89181708,3055.8,3055.7,2.29076]
[1720321810175,7.89201885,3055.8,3055.7,2.29076]
[1720321810679,7.89204471,3055.8,3055.7,2.29076]
[1720321812167,7.21645461,3055.8,3055.7,2.29076]
[1720321812894,7.21649447,3055.8,3055.7,2.29076]
[1720321813191,10.94468359,3055.8,3055.4,2.291]
[1720321813389,3.78543973,3055.6,3055.2,0.1127599]
[1720321813588,1.13886523,3055.5,3055.2,0.1127599]
[1720321813794,4.91881013,3055.4,3055.2,2.4039199]
[1720321813985,7.09023384,3055.3,3055.2,2.4039199]
[1720321814184,7.76629265,3055.3,3055.2,2.4039199]
[1720321814663,9.13626502,3055.3,3055.2,0.1127599]
[1720321814864,9.13626502,3055.3,3055.2,0.0627599]
[1720321815059,6.36398999,3055.3,3055.2,0.0627599]
[1720321815288,7.79225524,3055.3,3055.2,0.0127599]
[1720321815890,10.4109032,3055.3,3055.2,0.0127599]
[1720321816261,9.0578605,3055.3,3055.2,0.0127599]
[1720321817375,10.41093834,3055.3,3055.2,0.0127599]
[1720321818420,10.90636902,3055.3,3055.2,0.0127599]
[1720321818874,2.38455414,3055.3,3055.2,0.0127599]
[1720321819069,6.68847833,3055.3,3055.2,0.0127599]
[1720321819308,9.53610828,3055.3,3055.2,0.0127599]
[1720321819609,9.53620652,3055.3,3055.2,0.0127599]
[1720321819765,7.68771327,3055.3,3055.2,0.0127599]
[1720321819960,9.04057906,3055.3,3055.2,0.0127599]
[1720321820167,10.47071474,3055.3,3055.2,0.0127599]
[1720321820910,9.11784895,3055.3,3055.2,0.0127599]
[1720321821118,10.46974049,3055.3,3055.2,0.0127599]
[1720321821406,9.11784895,3055.3,3055.2,0.0127599]
[1720321822086,9.11837059,3055.3,3055.2,0.0127599]
[1720321822318,17.69769578,3055.3,3055.2,0.0127599]